fUSD/lending_fUSD_20240408
["ID","MTS","AMOUNT","RATE_DAILY","PERIOD"]
[321833970,1712550647077,-1146.85,0.00020999,2]
[321833972,1712550647087,-1146.85,0.00020999,2]
[321833973,1712550647096,-1146.85,0.00020999,2]
[321833975,1712550647105,-1146.85,0.00020999,2]
[321833977,1712550647114,-1146.85,0.00020999,2]
[321833979,1712550647123,-1146.85,0.00020999,2]
[321833982,1712550647133,-1146.85,0.00020999,2]
[321833984,1712550647143,-1146.9571858,0.00020999,2]
[321833985,1712550647152,-1712.17,0.00020999,2]
[321833988,1712550647162,-1712.17,0.00020999,2]
[321833989,1712550647171,-500.0,0.00020999,2]
[321833992,1712550647180,-1712.17,0.00020999,2]
[321833993,1712550647189,-500.0,0.00020999,2]
[321833995,1712550647199,-1712.17,0.00020999,2]
[321833996,1712550647210,-500.0,0.00020999,2]
[321833997,1712550647220,-1712.17,0.00020999,2]
[321833998,1712550647229,-500.0,0.00020999,2]
[321833999,1712550647239,-500.0,0.00020999,2]
[321834000,1712550647249,-500.0,0.00020999,2]
[321834001,1712550647259,-1712.17,0.00020999,2]
[321834002,1712550647269,-500.0,0.00020999,2]
[321834003,1712550647279,-634.44253157,0.00020999,2]
[321834004,1712550647299,-1712.17,0.00020999,2]
[321834005,1712550647307,-500.0,0.00020999,2]
[321834006,1712550647316,-1712.17,0.00020999,2]
[321834007,1712550647325,-500.0,0.00020999,2]
[321834008,1712550647336,-1712.17,0.00020999,2]
[321834009,1712550647346,-500.0,0.00020999,2]
[321834010,1712550647356,-1712.32184626,0.00020999,2]
[321834011,1712550647366,-367.44120438,0.00020999,2]
[321834012,1712550647375,-7070.26,0.00020999,2]
[321834013,1712550647386,-7070.26,0.00020999,2]
[321834014,1712550647397,-7070.26,0.00020999,2]
[321834015,1712550647410,-7070.26,0.00020999,2]
[321834016,1712550647419,-7070.26,0.00020999,2]
[321834017,1712550647430,-7070.26,0.00020999,2]
[321834018,1712550647441,-7070.26,0.00020999,2]
[321834019,1712550647451,-7070.26,0.00020999,2]
[321834020,1712550647460,-7070.26,0.00020999,2]
[321834021,1712550647469,-7070.26,0.00020999,2]
[321834022,1712550647479,-7070.26,0.00020999,2]
[321834023,1712550647488,-7070.26,0.00020999,2]
[321834024,1712550647497,-7070.26,0.00020999,2]
[321834025,1712550647506,-7070.26,0.00020999,2]
[321834026,1712550647515,-7070.26,0.00020999,2]
[321834027,1712550647524,-7070.26,0.00020999,2]
[321834028,1712550647533,-7070.26,0.00020999,2]
[321834029,1712550647543,-7070.26,0.00020999,2]
[321834030,1712550647552,-7070.43442352,0.00020999,2]
[321834031,1712550647561,-500.0,0.00020999,2]
[321834032,1712550647570,-500.0,0.00020999,2]
[321834033,1712550647579,-500.0,0.00020999,2]
[321834034,1712550647588,-500.0,0.00020999,2]
[321834035,1712550647597,-500.0,0.00020999,2]
[321834036,1712550647607,-500.0,0.00020999,2]
[321834037,1712550647621,-500.0,0.00020999,2]
[321834038,1712550647630,-166.58528896,0.00020999,2]
[321834039,1712550647639,-500.0,0.00020999,2]
[321834040,1712550647649,-500.0,0.00020999,2]
[321834041,1712550647662,-500.0,0.00020999,2]
[321834042,1712550647672,-500.0,0.00020999,2]
[321834043,1712550647682,-500.0,0.00020999,2]
[321834044,1712550647693,-500.0,0.00020999,2]
[321834045,1712550647703,-500.0,0.00020999,2]
[321834046,1712550647711,-500.0,0.00020999,2]
[321834047,1712550647721,-500.0,0.00020999,2]
[321834048,1712550647732,-151.6,0.00020999,2]
[321834049,1712550647741,-1443.18,0.00020999,2]
[321834050,1712550647752,-1443.18,0.00020999,2]
[321834051,1712550647761,-1443.18,0.00020999,2]
[321834052,1712550647771,-1443.18,0.00020999,2]
[321834053,1712550647781,-1443.18,0.00020999,2]
[321834054,1712550647791,-1443.18,0.00020999,2]
[321834055,1712550647800,-1443.18,0.00020999,2]
[321834056,1712550647809,-1443.18,0.00020999,2]
[321834057,1712550647818,-1443.18,0.00020999,2]
[321834058,1712550647827,-1443.18,0.00020999,2]
[321834059,1712550647837,-1443.18,0.00020999,2]
[321834060,1712550647846,-1443.18,0.00020999,2]
[321834061,1712550647856,-1443.18,0.00020999,2]
[321834062,1712550647865,-1443.18,0.00020999,2]
[321834063,1712550647875,-1443.18,0.00020999,2]
[321834064,1712550647884,-1443.18,0.00020999,2]
[321834065,1712550647894,-1443.18,0.00020999,2]
[321834066,1712550647903,-1443.35545291,0.00020999,2]
[321834067,1712550647912,-500.0,0.00020999,2]
[321834068,1712550647923,-500.0,0.00020999,2]
[321834069,1712550647933,-500.0,0.00020999,2]
[321834070,1712550647942,-500.0,0.00020999,2]
[321834071,1712550647953,-500.0,0.00020999,2]
[321834072,1712550647962,-500.0,0.00020999,2]
[321834073,1712550647972,-526.7,0.00020999,2]
[321834074,1712550647981,-227.35345494,0.00020999,2]
[321834075,1712550647991,-526.7,0.00020999,2]
[321834076,1712550648001,-526.7,0.00020999,2]
[321834077,1712550648011,-526.7,0.00020999,2]
[321834078,1712550648020,-526.7,0.00020999,2]
[321834079,1712550648030,-526.7,0.00020999,2]
[321834080,1712550648039,-526.7,0.00020999,2]
[321834081,1712550648048,-526.7,0.00020999,2]
[321834082,1712550648057,-526.7,0.00020999,2]
[321834083,1712550648066,-526.7,0.00020999,2]
[321834084,1712550648075,-526.7,0.00020999,2]
[321834085,1712550648084,-526.7,0.00020999,2]
[321834086,1712550648094,-526.7,0.00020999,2]
[321834087,1712550648103,-526.7,0.00020999,2]
[321834088,1712550648111,-526.7,0.00020999,2]
[321834089,1712550648121,-526.7,0.00020999,2]
[321834090,1712550648130,-526.77,0.00020999,2]
[321834091,1712550648139,-500.0,0.00020999,2]
[321834092,1712550648150,-500.0,0.00020999,2]
[321834093,1712550648160,-528.69345223,0.00020999,2]
[321834094,1712550648170,-500.0,0.00020999,2]
[321834095,1712550648181,-500.0,0.00020999,2]
[321834096,1712550648190,-500.0,0.00020999,2]
[321834097,1712550648201,-500.0,0.00020999,2]
[321834098,1712550648213,-500.0,0.00020999,2]
[321834099,1712550648223,-500.0,0.00020999,2]
[321834100,1712550648233,-500.0,0.00020999,2]
[321834101,1712550648243,-639.91041979,0.00020999,2]
[321834102,1712550648252,-1441.66,0.00020999,2]
[321834103,1712550648261,-1441.66,0.00020999,2]
[321834104,1712550648271,-1441.66,0.00020999,2]
[321834105,1712550648280,-1441.66,0.00020999,2]
[321834106,1712550648290,-1441.66,0.00020999,2]
[321834107,1712550648299,-1441.66,0.00020999,2]
[321834108,1712550648309,-1441.66,0.00020999,2]
[321834109,1712550648319,-1441.66,0.00020999,2]
[321834110,1712550648331,-1441.66,0.00020999,2]
[321834111,1712550648342,-1441.66,0.00020999,2]
[321834112,1712550648354,-1441.66,0.00020999,2]
[321834113,1712550648363,-1441.66,0.00020999,2]
[321834114,1712550648372,-1441.66,0.00020999,2]
[321834115,1712550648382,-1441.66,0.00020999,2]
[321834116,1712550648392,-1441.7527,0.00020999,2]
[321834117,1712550648401,-500.0,0.00020999,2]
[321834118,1712550648410,-500.0,0.00020999,2]
[321834119,1712550648420,-500.0,0.00020999,2]
[321834120,1712550648429,-500.0,0.00020999,2]
[321834121,1712550648438,-500.0,0.00020999,2]
[321834122,1712550648448,-500.0,0.00020999,2]
[321834123,1712550648457,-500.0,0.00020999,2]
[321834124,1712550648466,-487.90721543,0.00020999,2]
[321834125,1712550648475,-617.7509881,0.00020999,2]
[321834126,1712550648484,-500.0,0.00020999,2]
[321834127,1712550648495,-500.0,0.00020999,2]
[321834128,1712550648504,-500.0,0.00020999,2]
[321834129,1712550648513,-260.9,0.00020999,2]
[321834130,1712550648523,-500.0,0.00020999,2]
[321834131,1712550648532,-315.8,0.00020999,2]
[321834132,1712550648542,-450.78,0.00020999,2]
[321834133,1712550648552,-408.07126757,0.00020999,2]
[321834134,1712550648563,-500.0,0.00020999,2]
[321834135,1712550648573,-500.0,0.00020999,2]
[321834136,1712550648582,-500.0,0.00020999,2]
[321834137,1712550648592,-500.0,0.00020999,2]
[321834138,1712550648602,-500.0,0.00020999,2]
[321834139,1712550648614,-500.0,0.00020999,2]
[321834140,1712550648626,-500.0,0.00020999,2]
[321834141,1712550648635,-500.0,0.00020999,2]
[321834142,1712550648645,-500.0,0.00020999,2]
[321834143,1712550648655,-500.0,0.00020999,2]
[321834144,1712550648665,-500.0,0.00020999,2]
[321834145,1712550648674,-500.0,0.00020999,2]
[321834146,1712550648683,-356.05121011,0.00020999,2]
[321834147,1712550648693,-500.0,0.00020999,2]
[321834148,1712550648703,-500.0,0.00020999,2]
[321834149,1712550648713,-500.0,0.00020999,2]
[321834150,1712550648723,-500.0,0.00020999,2]
[321834151,1712550648734,-500.0,0.00020999,2]
[321834152,1712550648743,-500.0,0.00020999,2]
[321834153,1712550648753,-500.0,0.00020999,2]
[321834154,1712550648762,-500.0,0.00020999,2]
[321834155,1712550648771,-500.0,0.00020999,2]
[321834156,1712550648781,-500.0,0.00020999,2]
[321834157,1712550648791,-500.0,0.00020999,2]
[321834158,1712550648800,-500.0,0.00020999,2]
[321834159,1712550648811,-500.0,0.00020999,2]
[321834160,1712550648819,-500.0,0.00020999,2]
[321834161,1712550648829,-357.04,0.00020999,2]
[321834162,1712550648838,-500.0,0.00020999,2]
[321834163,1712550648849,-310.20337181,0.00020999,2]
[321834164,1712550648858,-500.0,0.00020999,2]
[321834165,1712550648867,-500.0,0.00020999,2]
[321834166,1712550649018,-500.0,0.00020999,2]
[321834167,1712550649034,-3279797.82423625,0.00021,2]
[321834168,1712550649230,-395723.42110396,0.00021,2]
[321834169,1712550649247,-5950.14032621,0.00021,2]
[321834170,1712550649267,-500.0,0.00020999,2]
[321834171,1712550649279,-7791.41377942,0.00021,2]
[321834172,1712550649588,-383.21955123,0.00020821,2]
[321834173,1712550649601,-174.58044877,0.00020821,2]
[321834174,1712550649612,-500.0,0.00020999,2]
[321834175,1712550649624,-500.0,0.00020999,2]
[321834176,1712550649633,-500.0,0.00020999,2]
[321834177,1712550649642,-442.13357212,0.00020999,2]
[321834178,1712550649942,-160.76920017,0.000208,2]
[321834179,1712550649952,-500.0,0.00020821,2]
[321834180,1712550649964,-57.86642788,0.00020999,2]
[321834181,1712550649974,-500.0,0.00020999,2]
[321834182,1712550649983,-500.0,0.00020999,2]
[321834183,1712550649992,-500.0,0.00020999,2]
[321834184,1712550650002,-241.84337401,0.00020999,2]
[321834185,1712550650011,-28642.12928231,0.00021,2]
[321834186,1712550650023,-1645.56559288,0.00021,2]
[321834187,1712550650034,-576.3935,0.00021,2]
[321834188,1712550650157,-500.0,0.00020997,2]
[321834189,1712550650166,-14846.35265771,0.00021,2]
[321834190,1712550650208,-500.0,0.00020997,2]
[321834191,1712550650216,-703.01526446,0.00021,2]
[321834192,1712550650559,-8e-08,0.00020821,2]
[321834194,1712551051842,294.1,0.00017942,2]
[321834195,1712551565938,279.39,0.00017887,2]
[321834196,1712551636149,-1454.00240063,0.00019,3]
[321834202,1712551831738,-488.40987031,0.00018997,2]
[321834203,1712551831750,-39.94680807,0.00018997,2]
[321834204,1712551831759,-653.66214087,0.00018999,2]
[321834205,1712551831768,-295.99759937,0.00019,3]
[321834206,1712551831777,-605.51,0.00019791,2]
[321834207,1712551831786,-6703.29,0.00019797,2]
[321834208,1712551831795,-500.0,0.00019799,2]
[321834209,1712551831805,-640.0,0.00019805,2]
[321834210,1712551831815,-360.0,0.00019929,2]
[321834211,1712551831824,-200.0,0.0002,3]
[321834212,1712551831833,-3260.6632195,0.00020149,2]
[321834213,1712551831842,-279.39,0.00020151,2]
[321834214,1712551831853,-499.99,0.00020151,2]
[321834215,1712551831864,-150.0,0.000205,2]
[321834216,1712551831875,-3260.6632195,0.00020518,2]
[321834217,1712551831885,-525.0,0.0002052,2]
[321834218,1712551831894,-37802.87430893,0.00020685,2]
[321834219,1712551831912,-2365.71554263,0.00020685,2]
[321834220,1712551831923,-6837.00639652,0.00020685,2]
[321834227,1712551837821,-19.16475167,0.00020685,2]
[321834228,1712551837857,-62493.34803363,0.00020685,2]
[321834229,1712551837866,-3853.8257,0.000207,2]
[321834230,1712551837875,-160.76920017,0.00020721,2]
[321834231,1712551837885,-150.0,0.00020728,2]
[321834232,1712551837895,-150.0,0.0002073,2]
[321834233,1712551837904,-150.0,0.00020746,2]
[321834234,1712551837913,-150.0,0.00020748,2]
[321834235,1712551837923,-150.0,0.00020749,2]
[321834236,1712551837932,-150.0,0.00020765,2]
[321834237,1712551837942,-150.0,0.00020766,2]
[321834238,1712551837952,-150.0,0.00020769,2]
[321834239,1712551837962,-150.0,0.00020775,2]
[321834240,1712551837971,-150.0,0.00020782,2]
[321834241,1712551837983,-150.0,0.00020785,2]
[321834242,1712551837993,-150.0,0.00020786,2]
[321834243,1712551838002,-150.0,0.00020787,2]
[321834244,1712551838012,-150.0,0.00020787,2]
[321834245,1712551838022,-150.0,0.00020788,2]
[321834246,1712551838031,-150.0,0.0002079,2]
[321834247,1712551838041,-1570.53581,0.0002079,2]
[321834248,1712551838051,-3260.6632195,0.00020793,2]
[321834249,1712551838062,-150.0,0.00020801,2]
[321834250,1712551838072,-150.0,0.00020804,2]
[321834251,1712551838081,-150.0,0.00020808,2]
[321834252,1712551838091,-150.0,0.00020808,2]
[321834253,1712551838102,-150.0,0.00020812,2]
[321834254,1712551838111,-150.0,0.00020814,2]
[321834255,1712551838121,-150.0,0.00020818,2]
[321834256,1712551838130,-150.0,0.00020819,2]
[321834257,1712551838144,-150.0,0.0002082,2]
[321834258,1712551838154,-9510.59926608,0.00020821,2]
[321834259,1712551838163,-500.0,0.00020821,2]
[321834260,1712551838172,-500.0,0.00020821,2]
[321834261,1712551838182,-500.0,0.00020821,2]
[321834263,1712551838191,-500.0,0.00020821,2]
[321834265,1712551838201,-150.0,0.00020821,2]
[321834267,1712551838210,-508.86055804,0.00020821,2]
[321834269,1712551838220,-500.0,0.00020821,2]
[321834271,1712551838229,-150.0,0.00020827,2]
[321834273,1712551838239,-500.0,0.00020832,2]
[321834274,1712551838248,-150.0,0.00020838,2]
[321834275,1712551838257,-150.0,0.00020849,2]
[321834276,1712551838267,-150.0,0.00020849,2]
[321834277,1712551838280,-150.0,0.00020857,2]
[321834278,1712551838289,-150.0,0.00020857,2]
[321834279,1712551838299,-150.0,0.00020859,2]
[321834280,1712551838308,-150.0,0.0002086,2]
[321834281,1712551838318,-150.0,0.00020863,2]
[321834282,1712551838327,-150.0,0.00020866,2]
[321834283,1712551838336,-150.0,0.00020869,2]
[321834284,1712551838346,-150.0,0.00020874,2]
[321834285,1712551838357,-150.0,0.00020874,2]
[321834286,1712551838366,-150.0,0.00020877,2]
[321834287,1712551838375,-150.0,0.00020879,2]
[321834288,1712551838385,-150.0,0.00020885,2]
[321834289,1712551838394,-150.0,0.0002089,2]
[321834290,1712551838404,-150.0,0.00020892,2]
[321834291,1712551838413,-326.36783402,0.00020899,2]
[321834292,1712551838423,-500.0,0.00020899,2]
[321834293,1712551838432,-500.0,0.00020899,2]
[321834294,1712551838442,-500.0,0.00020899,2]
[321834295,1712551838452,-150.0,0.00020899,2]
[321834296,1712551838461,-515.86581381,0.00020899,2]
[321834297,1712551838470,-500.0,0.00020899,2]
[321834298,1712551838479,-500.0,0.00020899,2]
[321834299,1712551838488,-500.0,0.00020899,2]
[321834300,1712551838497,-500.0,0.00020899,2]
[321834301,1712551838506,-500.0,0.00020899,2]
[321834302,1712551838517,-542.34570165,0.00020899,2]
[321834303,1712551838525,-500.0,0.00020899,2]
[321834304,1712551838535,-500.0,0.00020899,2]
[321834305,1712551838544,-500.0,0.00020899,2]
[321834306,1712551838554,-500.0,0.00020899,2]
[321834307,1712551838563,-608.12,0.00020899,2]
[321834308,1712551838575,-500.0,0.00020899,2]
[321834309,1712551838585,-500.0,0.00020899,2]
[321834310,1712551838596,-1082.39,0.00020899,2]
[321834311,1712551838607,-500.0,0.00020899,2]
[321834312,1712551838616,-500.0,0.00020899,2]
[321834313,1712551838625,-617.7509881,0.00020899,2]
[321834314,1712551838634,-500.0,0.00020899,2]
[321834315,1712551838643,-500.0,0.00020899,2]
[321834316,1712551838653,-450.78,0.00020899,2]
[321834317,1712551838662,-500.0,0.00020899,2]
[321834318,1712551838671,-500.0,0.00020899,2]
[321834319,1712551838681,-408.07126757,0.00020899,2]
[321834320,1712551838690,-500.0,0.00020899,2]
[321834321,1712551838699,-500.0,0.00020899,2]
[321834322,1712551838709,-500.0,0.00020899,2]
[321834323,1712551838721,-500.0,0.00020899,2]
[321834324,1712551838730,-901.04,0.00020899,2]
[321834325,1712551838739,-500.0,0.00020899,2]
[321834326,1712551838748,-500.0,0.00020899,2]
[321834327,1712551838758,-500.0,0.00020899,2]
[321834328,1712551838767,-500.0,0.00020899,2]
[321834329,1712551838776,-500.0,0.00020899,2]
[321834330,1712551838785,-500.0,0.00020899,2]
[321834331,1712551838794,-500.0,0.00020899,2]
[321834332,1712551838803,-500.0,0.00020899,2]
[321834333,1712551838812,-500.0,0.00020899,2]
[321834334,1712551838821,-213.82560365,0.00020899,2]
[321834335,1712551838830,-500.0,0.00020899,2]
[321834336,1712551838839,-500.0,0.00020899,2]
[321834337,1712551838849,-500.0,0.00020899,2]
[321834338,1712551838860,-500.0,0.00020899,2]
[321834339,1712551838869,-500.0,0.00020899,2]
[321834340,1712551838879,-230.9915,0.000209,2]
[321834341,1712551838888,-250000.0,0.000209,2]
[321834342,1712551838897,-150.0,0.000209,2]
[321834343,1712551838906,-157.040813,0.00020908,2]
[321834344,1712551838915,-157.040813,0.00020908,2]
[321834345,1712551838924,-157.040813,0.00020908,2]
[321834346,1712551838933,-157.040813,0.00020908,2]
[321834347,1712551838943,-157.040813,0.00020908,2]
[321834348,1712551838952,-157.040813,0.00020908,2]
[321834349,1712551838962,-157.040813,0.00020908,2]
[321834350,1712551838971,-157.040813,0.00020908,2]
[321834351,1712551838983,-157.040813,0.00020908,2]
[321834352,1712551838992,-157.040813,0.00020908,2]
[321834353,1712551839001,-157.040813,0.00020908,2]
[321834354,1712551839010,-157.040813,0.00020908,2]
[321834355,1712551839019,-157.040813,0.00020908,2]
[321834356,1712551839029,-157.040813,0.00020908,2]
[321834357,1712551839038,-150.0,0.00020911,2]
[321834358,1712551839047,-150.0,0.00020915,2]
[321834359,1712551839057,-150.0,0.00020917,2]
[321834360,1712551839067,-150.0,0.00020918,2]
[321834361,1712551839077,-150.0,0.00020923,2]
[321834362,1712551839086,-150.0,0.00020924,2]
[321834363,1712551839095,-300.0,0.00020924,2]
[321834364,1712551839106,-150.0,0.00020932,2]
[321834365,1712551839115,-150.0,0.00020937,2]
[321834366,1712551839125,-150.0,0.00020941,2]
[321834367,1712551839134,-150.0,0.0002095,2]
[321834368,1712551839143,-150.0,0.00020952,2]
[321834369,1712551839152,-150.0,0.00020954,2]
[321834370,1712551839162,-150.0,0.00020958,2]
[321834371,1712551839171,-150.0,0.00020958,2]
[321834372,1712551839180,-150.0,0.00020959,2]
[321834373,1712551839189,-150.0,0.00020959,2]
[321834374,1712551839198,-150.0,0.0002096,2]
[321834375,1712551839208,-150.0,0.00020961,2]
[321834376,1712551839217,-150.0,0.00020972,2]
[321834377,1712551839226,-150.0,0.00020973,2]
[321834378,1712551839235,-209.81668921,0.00020978,2]
[321834379,1712551839244,-150.0,0.00020979,2]
[321834380,1712551839254,-150.0,0.00020981,2]
[321834381,1712551839264,-150.0,0.00020982,2]
[321834382,1712551839274,-150.0,0.00020989,2]
[321834383,1712551839284,-150.0,0.00020989,2]
[321834384,1712551839293,-150.0,0.00020989,2]
[321834385,1712551839302,-34929.84220522,0.00020992,2]
[321834386,1712551839311,-150.0,0.00020993,2]
[321834387,1712551839320,-532.8212942,0.00020994,2]
[321834388,1712551839329,-500.0,0.00020994,2]
[321834389,1712551839339,-500.0,0.00020994,2]
[321834390,1712551839348,-183.3,0.00020994,2]
[321834391,1712551839359,-500.0,0.00020994,2]
[321834392,1712551839367,-500.0,0.00020994,2]
[321834393,1712551839378,-535.12,0.00020995,2]
[321834394,1712551839387,-500.0,0.00020995,2]
[321834395,1712551839397,-500.0,0.00020995,2]
[321834396,1712551839406,-500.0,0.00020995,2]
[321834397,1712551839415,-500.0,0.00020995,2]
[321834398,1712551839425,-500.0,0.00020995,2]
[321834399,1712551839435,-1082.39,0.00020995,2]
[321834400,1712551839445,-500.0,0.00020995,2]
[321834401,1712551839454,-500.0,0.00020995,2]
[321834402,1712551839463,-315.8,0.00020995,2]
[321834403,1712551839473,-500.0,0.00020995,2]
[321834404,1712551839483,-500.0,0.00020995,2]
[321834405,1712551839492,-500.0,0.00020995,2]
[321834406,1712551839501,-500.0,0.00020995,2]
[321834407,1712551839512,-901.04,0.00020995,2]
[321834408,1712551839521,-500.0,0.00020995,2]
[321834409,1712551839531,-500.0,0.00020995,2]
[321834410,1712551839540,-500.0,0.00020995,2]
[321834411,1712551839550,-500.0,0.00020995,2]
[321834412,1712551839560,-500.0,0.00020995,2]
[321834413,1712551839569,-500.0,0.00020995,2]
[321834414,1712551839579,-500.0,0.00020995,2]
[321834415,1712551839588,-500.0,0.00020995,2]
[321834416,1712551839597,-500.0,0.00020995,2]
[321834417,1712551839608,-500.0,0.00020995,2]
[321834418,1712551839617,-500.0,0.00020995,2]
[321834420,1712551839626,-410.12854852,0.00020996,2]
[321834422,1712551839635,-500.0,0.00020996,2]
[321834424,1712551839644,-500.0,0.00020996,2]
[321834426,1712551839653,-500.0,0.00020996,2]
[321834428,1712551839662,-500.0,0.00020996,2]
[321834430,1712551839671,-500.0,0.00020996,2]
[321834432,1712551839680,-500.0,0.00020996,2]
[321834433,1712551839690,-552.78,0.00020996,2]
[321834434,1712551839699,-500.0,0.00020996,2]
[321834435,1712551839708,-500.0,0.00020996,2]
[321834436,1712551839717,-500.0,0.00020996,2]
[321834437,1712551839727,-500.0,0.00020996,2]
[321834438,1712551839736,-500.0,0.00020996,2]
[321834439,1712551839745,-500.0,0.00020996,2]
[321834440,1712551839755,-500.0,0.00020996,2]
[321834441,1712551839764,-500.0,0.00020996,2]
[321834442,1712551839773,-4445.7,0.00020996,2]
[321834443,1712551839782,-500.0,0.00020996,2]
[321834444,1712551839791,-500.0,0.00020996,2]
[321834445,1712551839801,-500.0,0.00020996,2]
[321834446,1712551839811,-500.0,0.00020996,2]
[321834447,1712551839822,-500.0,0.00020996,2]
[321834448,1712551839831,-500.0,0.00020996,2]
[321834449,1712551839840,-2058.65473927,0.00020997,2]
[321834450,1712551839851,-46368.17349057,0.00020997,2]
[321834451,1712551839860,-578.75008031,0.00020997,2]
[321834452,1712551839870,-500.0,0.00020997,2]
[321834453,1712551839879,-500.0,0.00020997,2]
[321834454,1712551839888,-4395.89511718,0.00020998,2]
[321834455,1712551839898,-150.0,0.00020998,2]
[321834456,1712551839908,-500.0,0.00020998,2]
[321834457,1712551839917,-500.0,0.00020998,2]
[321834458,1712551839925,-500.0,0.00020998,2]
[321834459,1712551839934,-166.58528896,0.00020998,2]
[321834460,1712551839944,-500.0,0.00020998,2]
[321834461,1712551839955,-500.0,0.00020998,2]
[321834462,1712551839964,-901.04,0.00020998,2]
[321834463,1712551839973,-310.45597766,0.00020998,2]
[321834464,1712551839985,-500.0,0.00020998,2]
[321834465,1712551839994,-150.01,0.00020999,2]
[321834466,1712551840003,-1996.81983586,0.00020999,2]
[321834467,1712551840012,-2122.15849315,0.00020999,2]
[321834468,1712551840022,-500.0,0.00020999,2]
[321834469,1712551840032,-500.0,0.00020999,2]
[321834470,1712551840041,-150.0,0.00020999,2]
[321834471,1712551840050,-500.0,0.00020999,2]
[321834472,1712551840060,-500.0,0.00020999,2]
[321834473,1712551840069,-500.0,0.00020999,2]
[321834474,1712551840078,-500.0,0.00020999,2]
[321834475,1712551840087,-494.70946167,0.00020999,2]
[321834476,1712551840097,-634.40116904,0.00020999,2]
[321834477,1712551840106,-500.0,0.00020999,2]
[321834478,1712551840116,-543.35194168,0.00020999,2]
[321834479,1712551840125,-528.04,0.00020999,2]
[321834480,1712551840134,-183.29,0.00020999,2]
[321834481,1712551840143,-156.24646567,0.00020999,2]
[321834482,1712551840152,-500.0,0.00020999,2]
[321834483,1712551840161,-500.0,0.00020999,2]
[321834484,1712551840170,-500.0,0.00020999,2]
[321834485,1712551840179,-500.0,0.00020999,2]
[321834486,1712551840189,-500.0,0.00020999,2]
[321834487,1712551840199,-500.0,0.00020999,2]
[321834488,1712551840209,-500.0,0.00020999,2]
[321834489,1712551840218,-587.4,0.00020999,2]
[321834490,1712551840227,-1082.39,0.00020999,2]
[321834491,1712551840237,-1082.39,0.00020999,2]
[321834492,1712551840247,-1082.39,0.00020999,2]
[321834493,1712551840256,-1082.39,0.00020999,2]
[321834494,1712551840266,-1082.39,0.00020999,2]
[321834495,1712551840275,-1082.39,0.00020999,2]
[321834496,1712551840285,-1082.39,0.00020999,2]
[321834497,1712551840294,-1082.39,0.00020999,2]
[321834498,1712551840303,-1082.39,0.00020999,2]
[321834499,1712551840313,-1082.39,0.00020999,2]
[321834500,1712551840322,-1082.39,0.00020999,2]
[321834502,1712551840331,-1082.39,0.00020999,2]
[321834504,1712551840341,-1082.39,0.00020999,2]
[321834506,1712551840350,-1082.39,0.00020999,2]
[321834508,1712551840360,-1082.39,0.00020999,2]
[321834509,1712551840369,-1082.39,0.00020999,2]
[321834511,1712551840378,-1082.39,0.00020999,2]